[Event "Titled Tuesday Blitz November 15 Early 2022"]
[White "Piesik, Piotr"]
[Black "Kovalev, Vladislav"]
[WhiteFideId "1136194"]
[BlackFideId "13504398"]
[WhiteElo "2316"]
[BlackElo "2556"]
[Result "1/2-1/2"]
[Round "06"]
[TimeControl "180+1"]
[Date "2022.11.16"]
[WhiteClock "0:00:17"]
[BlackClock "0:00:05"]

1. Nf3 {[%clk 0:02:48]}  Nf6 {[%clk 0:02:58]} 2. g3 {[%clk 0:02:48]}  g6 {[%clk 0:02:59]} 3. Bg2 {[%clk 0:02:48]}  Bg7 {[%clk 0:03:00]} 4. O-O {[%clk 0:02:49]}  O-O {[%clk 0:03:01]} 5. d4 {[%clk 0:02:49]}  d6 {[%clk 0:03:01]} 6. Nbd2 {[%clk 0:02:49]}  Nc6 {[%clk 0:03:00]} 7. e4 {[%clk 0:02:50]}  e5 {[%clk 0:03:00]} 8. dxe5 {[%clk 0:02:50]}  Nxe5 {[%clk 0:02:51]} 9. Nxe5 {[%clk 0:02:50]}  dxe5 {[%clk 0:02:52]} 10. Qe2 {[%clk 0:02:51]}  Qe7 {[%clk 0:02:50]} 11. Nc4 {[%clk 0:02:50]}  b6 {[%clk 0:02:43]} 12. Rd1 {[%clk 0:02:43]}  Ba6 {[%clk 0:02:43]} 13. Bf1 {[%clk 0:02:42]}  Rfd8 {[%clk 0:02:39]} 14. Bg5 {[%clk 0:02:41]}  h6 {[%clk 0:02:39]} 15. Bxf6 {[%clk 0:02:41]}  Bxf6 {[%clk 0:02:35]} 16. Qf3 {[%clk 0:02:34]}  Bb7 {[%clk 0:01:47]} 17. Ne3 {[%clk 0:02:28]}  c6 {[%clk 0:01:45]} 18. c3 {[%clk 0:02:23]}  Kg7 {[%clk 0:01:45]} 19. h4 {[%clk 0:02:19]}  h5 {[%clk 0:01:45]} 20. Bc4 {[%clk 0:02:16]}  Rxd1+ {[%clk 0:01:37]} 21. Rxd1 {[%clk 0:02:15]}  Rd8 {[%clk 0:01:38]} 22. Bb3 {[%clk 0:02:12]}  Bc8 {[%clk 0:01:33]} 23. Kf1 {[%clk 0:02:02]}  Rd6 {[%clk 0:01:29]} 24. Ke1 {[%clk 0:02:00]}  b5 {[%clk 0:01:26]} 25. Rxd6 {[%clk 0:01:59]}  Qxd6 {[%clk 0:01:27]} 26. Qd1 {[%clk 0:01:59]}  Be7 {[%clk 0:01:24]} 27. Qxd6 {[%clk 0:01:57]}  Bxd6 {[%clk 0:01:25]} 28. a4 {[%clk 0:01:57]}  a6 {[%clk 0:01:25]} 29. axb5 {[%clk 0:01:57]}  axb5 {[%clk 0:01:23]} 30. Ke2 {[%clk 0:01:51]}  Kf6 {[%clk 0:01:22]} 31. Kf3 {[%clk 0:01:49]}  Bc5 {[%clk 0:01:22]} 32. Bc2 {[%clk 0:01:46]}  Ke7 {[%clk 0:01:19]} 33. b4 {[%clk 0:01:45]}  Bb6 {[%clk 0:01:18]} 34. Bb3 {[%clk 0:01:43]}  Ba7 {[%clk 0:01:11]} 35. Ba2 {[%clk 0:01:40]}  Bd7 {[%clk 0:01:08]} 36. Bb3 {[%clk 0:01:40]}  f5 {[%clk 0:00:59]} 37. Bc2 {[%clk 0:01:26]}  Kf6 {[%clk 0:00:57]} 38. Nf1 {[%clk 0:01:15]}  Bb8 {[%clk 0:00:39]} 39. Nd2 {[%clk 0:01:14]}  f4 {[%clk 0:00:38]} 40. Nb3 {[%clk 0:01:12]}  Bg4+ {[%clk 0:00:37]} 41. Kg2 {[%clk 0:01:12]}  Be2 {[%clk 0:00:36]} 42. Na5 {[%clk 0:01:07]}  Bc7 {[%clk 0:00:18]} 43. Nxc6 {[%clk 0:01:06]}  Bb6 {[%clk 0:00:19]} 44. Na5 {[%clk 0:00:55]}  g5 {[%clk 0:00:18]} 45. hxg5+ {[%clk 0:00:55]}  Kxg5 {[%clk 0:00:19]} 46. Nb3 {[%clk 0:00:52]}  f3+ {[%clk 0:00:09]} 47. Kg1 {[%clk 0:00:52]}  h4 {[%clk 0:00:10]} 48. gxh4+ {[%clk 0:00:51]}  Kxh4 {[%clk 0:00:11]} 49. Nc5 {[%clk 0:00:44]}  Kg5 {[%clk 0:00:11]} 50. Nd7 {[%clk 0:00:40]}  Bc7 {[%clk 0:00:11]} 51. Nc5 {[%clk 0:00:40]}  Kf6 {[%clk 0:00:11]} 52. Bd3 {[%clk 0:00:34]}  Bb6 {[%clk 0:00:04]} 53. Bxe2 {[%clk 0:00:25]}  fxe2 {[%clk 0:00:04]} 54. Nd3 {[%clk 0:00:24]}  Kg5 {[%clk 0:00:05]} 55. Kg2 {[%clk 0:00:24]}  Kg4 {[%clk 0:00:04]} 56. f3+ {[%clk 0:00:22]}  Kg5 {[%clk 0:00:01]} 57. Kg3 {[%clk 0:00:22]}  Be3 {[%clk 0:00:01]} 58. Kg2 {[%clk 0:00:20]}  Kh4 {[%clk 0:00:01]} 59. Ne1 {[%clk 0:00:20]}  Bd2 {[%clk 0:00:02]} 60. Kf2 {[%clk 0:00:20]}  Bxc3 {[%clk 0:00:02]} 61. Nd3 {[%clk 0:00:19]}  e1=Q+ {[%clk 0:00:02]} 62. Nxe1 {[%clk 0:00:20]}  Bxb4 {[%clk 0:00:03]} 63. Nd3 {[%clk 0:00:19]}  Bc3 {[%clk 0:00:03]} 64. f4 {[%clk 0:00:19]}  exf4 {[%clk 0:00:01]} 65. Nxf4 {[%clk 0:00:19]}  b4 {[%clk 0:00:02]} 66. Nd3 {[%clk 0:00:19]}  b3 {[%clk 0:00:02]} 67. Ke2 {[%clk 0:00:18]}  Kg4 {[%clk 0:00:03]} 68. Kd1 {[%clk 0:00:17]}  Kf3 {[%clk 0:00:04]} 69. e5 {[%clk 0:00:17]}  Ke3 {[%clk 0:00:03]} 70. Nc5 {[%clk 0:00:17]}  b2 {[%clk 0:00:04]} 71. Kc2 {[%clk 0:00:17]}  Bxe5 {[%clk 0:00:05]} 72. Na4 {[%clk 0:00:17]}  Ke4 {[%clk 0:00:05]} 73. Nxb2 {[%clk 0:00:17]} 1/2-1/2


[Site "https://www.chess.com"]

[Event "Titled Tuesday Blitz November 15 Early 2022"]
[White "Pinheiro, Iung Alicio de O."]
[Black "Torres Dominguez, David"]
[WhiteFideId "2104350"]
[BlackFideId "2220857"]
[WhiteElo "2283"]
[BlackElo "2037"]
[Result "1-0"]
[Round "06"]
[TimeControl "180+1"]
[Date "2022.11.16"]
[WhiteClock "0:00:10"]
[BlackClock "0:00:04"]

1. e4 {[%clk 0:03:00]}  Nc6 {[%clk 0:02:58]} 2. Nf3 {[%clk 0:02:59]}  e5 {[%clk 0:02:56]} 3. Bc4 {[%clk 0:02:51]}  Bc5 {[%clk 0:02:55]} 4. c3 {[%clk 0:02:50]}  Nf6 {[%clk 0:02:54]} 5. d3 {[%clk 0:02:47]}  a6 {[%clk 0:02:52]} 6. a4 {[%clk 0:02:42]}  Ba7 {[%clk 0:02:52]} 7. O-O {[%clk 0:02:40]}  d6 {[%clk 0:02:51]} 8. Re1 {[%clk 0:02:30]}  h6 {[%clk 0:02:32]} 9. b4 {[%clk 0:02:07]}  O-O {[%clk 0:02:28]} 10. h3 {[%clk 0:02:03]}  Ne7 {[%clk 0:02:27]} 11. Nbd2 {[%clk 0:01:56]}  Ng6 {[%clk 0:02:26]} 12. Nf1 {[%clk 0:01:55]}  Qe7 {[%clk 0:02:23]} 13. Be3 {[%clk 0:01:53]}  Nh5 {[%clk 0:01:51]} 14. Bxa7 {[%clk 0:01:46]}  Rxa7 {[%clk 0:01:50]} 15. d4 {[%clk 0:01:21]}  Nhf4 {[%clk 0:01:48]} 16. Ne3 {[%clk 0:01:21]}  c6 {[%clk 0:01:39]} 17. Kh2 {[%clk 0:01:15]}  Nh4 {[%clk 0:01:35]} 18. Ng1 {[%clk 0:00:54]}  Nhg6 {[%clk 0:01:19]} 19. g3 {[%clk 0:00:51]}  Ne6 {[%clk 0:01:18]} 20. Nf5 {[%clk 0:00:50]}  Qf6 {[%clk 0:01:15]} 21. Qd2 {[%clk 0:00:30]}  Nc7 {[%clk 0:01:09]} 22. Bd3 {[%clk 0:00:28]}  Ra8 {[%clk 0:01:06]} 23. Rad1 {[%clk 0:00:23]}  Rd8 {[%clk 0:00:53]} 24. Nf3 {[%clk 0:00:22]}  Ne7 {[%clk 0:00:40]} 25. Nxe7+ {[%clk 0:00:17]}  Qxe7 {[%clk 0:00:35]} 26. Bc2 {[%clk 0:00:18]}  Ne6 {[%clk 0:00:13]} 27. Kg2 {[%clk 0:00:13]}  Bd7 {[%clk 0:00:04]} 28. dxe5 {[%clk 0:00:10]} 1-0


[Site "https://www.chess.com"]

[Event "Titled Tuesday Blitz November 15 Early 2022"]
[White "Rakhmatullaev, Almas"]
[Black "Przybylski, Wojciech"]
[WhiteFideId "14205793"]
[BlackFideId "1117599"]
[WhiteElo "2221"]
[BlackElo "2221"]
[Result "1-0"]
[Round "06"]
[TimeControl "180+1"]
[Date "2022.11.16"]
[WhiteClock "0:00:46"]
[BlackClock "0:00:06"]

1. e4 {[%clk 0:03:00]}  e5 {[%clk 0:02:59]} 2. Nf3 {[%clk 0:03:01]}  Nc6 {[%clk 0:02:58]} 3. Bb5 {[%clk 0:03:01]}  Nf6 {[%clk 0:02:58]} 4. O-O {[%clk 0:03:00]}  Nxe4 {[%clk 0:02:58]} 5. d4 {[%clk 0:02:59]}  Nd6 {[%clk 0:02:58]} 6. Bxc6 {[%clk 0:02:59]}  dxc6 {[%clk 0:02:59]} 7. dxe5 {[%clk 0:03:00]}  Nf5 {[%clk 0:02:59]} 8. Qxd8+ {[%clk 0:03:01]}  Kxd8 {[%clk 0:03:00]} 9. h4 {[%clk 0:03:00]}  h6 {[%clk 0:02:58]} 10. Nc3 {[%clk 0:02:59]}  Be7 {[%clk 0:02:57]} 11. g3 {[%clk 0:02:56]}  Be6 {[%clk 0:02:55]} 12. Rd1+ {[%clk 0:02:53]}  Kc8 {[%clk 0:02:55]} 13. b3 {[%clk 0:02:44]}  Rd8 {[%clk 0:02:53]} 14. Bf4 {[%clk 0:02:41]}  b6 {[%clk 0:02:52]} 15. Rxd8+ {[%clk 0:02:38]}  Bxd8 {[%clk 0:02:47]} 16. Ne2 {[%clk 0:02:33]}  c5 {[%clk 0:02:46]} 17. c4 {[%clk 0:02:32]}  Kb7 {[%clk 0:02:44]} 18. Nc3 {[%clk 0:02:28]}  Nd4 {[%clk 0:02:40]} 19. Nxd4 {[%clk 0:02:27]}  cxd4 {[%clk 0:02:40]} 20. Nb5 {[%clk 0:02:28]}  d3 {[%clk 0:02:31]} 21. Rd1 {[%clk 0:02:27]}  Bf5 {[%clk 0:02:31]} 22. f3 {[%clk 0:02:22]}  Be7 {[%clk 0:02:25]} 23. Kf2 {[%clk 0:02:15]}  Rd8 {[%clk 0:02:20]} 24. Be3 {[%clk 0:01:57]}  c5 {[%clk 0:02:04]} 25. Nc3 {[%clk 0:01:50]}  Be6 {[%clk 0:02:03]} 26. Bf4 {[%clk 0:01:39]}  g5 {[%clk 0:02:01]} 27. hxg5 {[%clk 0:01:36]}  hxg5 {[%clk 0:02:01]} 28. Bc1 {[%clk 0:01:37]}  f6 {[%clk 0:01:34]} 29. exf6 {[%clk 0:01:27]}  Bxf6 {[%clk 0:01:34]} 30. Ne4 {[%clk 0:01:28]}  Bd4+ {[%clk 0:01:30]} 31. Be3 {[%clk 0:01:27]}  Be5 {[%clk 0:00:31]} 32. Nxg5 {[%clk 0:01:13]}  Bf5 {[%clk 0:00:27]} 33. Nf7 {[%clk 0:01:06]}  Re8 {[%clk 0:00:27]} 34. Nxe5 {[%clk 0:01:06]}  Rxe5 {[%clk 0:00:28]} 35. g4 {[%clk 0:01:05]}  Bg6 {[%clk 0:00:27]} 36. f4 {[%clk 0:01:05]}  Re4 {[%clk 0:00:23]} 37. f5 {[%clk 0:01:04]}  Be8 {[%clk 0:00:19]} 38. g5 {[%clk 0:01:02]}  Re5 {[%clk 0:00:17]} 39. f6 {[%clk 0:01:01]}  Rf5+ {[%clk 0:00:17]} 40. Kg3 {[%clk 0:00:58]}  Bg6 {[%clk 0:00:10]} 41. Rxd3 {[%clk 0:00:55]}  Kc6 {[%clk 0:00:10]} 42. Bf4 {[%clk 0:00:50]}  b5 {[%clk 0:00:07]} 43. Rd6+ {[%clk 0:00:49]}  Kb7 {[%clk 0:00:08]} 44. cxb5 {[%clk 0:00:47]}  c4 {[%clk 0:00:05]} 45. bxc4 {[%clk 0:00:48]}  Rc5 {[%clk 0:00:05]} 46. Rd7+ {[%clk 0:00:47]}  Kc8 {[%clk 0:00:05]} 47. Rg7 {[%clk 0:00:46]}  Bh5 {[%clk 0:00:05]} 48. f7 {[%clk 0:00:46]}  Bxf7 {[%clk 0:00:05]} 49. Rxf7 {[%clk 0:00:46]}  Rxc4 {[%clk 0:00:06]} 50. g6 {[%clk 0:00:46]} 1-0


[Site "https://www.chess.com"]

[Event "Titled Tuesday Blitz November 15 Early 2022"]
[White "Rios Escobar, Adan"]
[Black "Rosh Jain"]
[WhiteFideId "3403645"]
[BlackFideId "25789465"]
[WhiteElo "2337"]
[BlackElo "2233"]
[Result "1-0"]
[Round "06"]
[TimeControl "180+1"]
[Date "2022.11.16"]
[WhiteClock "0:00:04"]
[BlackClock "0:00:01"]

1. d4 {[%clk 0:02:56]}  Nf6 {[%clk 0:02:54]} 2. g3 {[%clk 0:02:56]}  d5 {[%clk 0:02:53]} 3. c4 {[%clk 0:02:54]}  e6 {[%clk 0:02:53]} 4. Bg2 {[%clk 0:02:52]}  dxc4 {[%clk 0:02:53]} 5. Nf3 {[%clk 0:02:51]}  Nc6 {[%clk 0:02:52]} 6. O-O {[%clk 0:02:32]}  Bb4 {[%clk 0:02:51]} 7. Ne5 {[%clk 0:02:10]}  Nxe5 {[%clk 0:01:22]} 8. Qa4+ {[%clk 0:02:08]}  Nc6 {[%clk 0:01:16]} 9. Bxc6+ {[%clk 0:02:07]}  bxc6 {[%clk 0:01:17]} 10. Qxb4 {[%clk 0:02:08]}  Qxd4 {[%clk 0:01:16]} 11. Be3 {[%clk 0:02:02]}  Qd6 {[%clk 0:01:15]} 12. Bc5 {[%clk 0:02:01]}  Qd5 {[%clk 0:01:16]} 13. Nc3 {[%clk 0:01:58]}  Qf5 {[%clk 0:01:08]} 14. Qxc4 {[%clk 0:01:52]}  Nd7 {[%clk 0:01:07]} 15. Ba3 {[%clk 0:01:45]}  c5 {[%clk 0:01:07]} 16. e4 {[%clk 0:01:32]}  Qh5 {[%clk 0:01:06]} 17. Rad1 {[%clk 0:00:46]}  O-O {[%clk 0:00:43]} 18. Qe2 {[%clk 0:00:43]}  Qxe2 {[%clk 0:00:37]} 19. Nxe2 {[%clk 0:00:43]}  Nf6 {[%clk 0:00:31]} 20. Bxc5 {[%clk 0:00:33]}  Re8 {[%clk 0:00:30]} 21. Nc3 {[%clk 0:00:27]}  Ba6 {[%clk 0:00:28]} 22. Rfe1 {[%clk 0:00:27]}  Ng4 {[%clk 0:00:23]} 23. f4 {[%clk 0:00:15]}  Rad8 {[%clk 0:00:21]} 24. h3 {[%clk 0:00:15]}  Nf6 {[%clk 0:00:21]} 25. Kf2 {[%clk 0:00:14]}  Bb7 {[%clk 0:00:18]} 26. Ke3 {[%clk 0:00:13]}  a6 {[%clk 0:00:18]} 27. g4 {[%clk 0:00:11]}  Nd7 {[%clk 0:00:16]} 28. Bb4 {[%clk 0:00:05]}  Nb6 {[%clk 0:00:14]} 29. b3 {[%clk 0:00:04]}  f6 {[%clk 0:00:09]} 30. Ba5 {[%clk 0:00:05]}  Kf7 {[%clk 0:00:08]} 31. Bxb6 {[%clk 0:00:04]}  cxb6 {[%clk 0:00:08]} 32. Na4 {[%clk 0:00:05]}  b5 {[%clk 0:00:07]} 33. Nc5 {[%clk 0:00:06]}  Bc8 {[%clk 0:00:07]} 34. b4 {[%clk 0:00:06]}  Ke7 {[%clk 0:00:05]} 35. e5 {[%clk 0:00:06]}  fxe5 {[%clk 0:00:05]} 36. fxe5 {[%clk 0:00:07]}  Rf8 {[%clk 0:00:05]} 37. Rf1 {[%clk 0:00:02]}  Rxd1 {[%clk 0:00:02]} 38. Rxd1 {[%clk 0:00:03]}  Rf7 {[%clk 0:00:02]} 39. Ne4 {[%clk 0:00:03]}  Rf8 {[%clk 0:00:01]} 40. Nd6 {[%clk 0:00:03]}  Rd8 {[%clk 0:00:02]} 41. Rc1 {[%clk 0:00:03]}  Bd7 {[%clk 0:00:01]} 42. Rc7 {[%clk 0:00:04]}  Ra8 {[%clk 0:00:01]} 43. Rb7 {[%clk 0:00:04]} 1-0


[Site "https://www.chess.com"]

[Event "Titled Tuesday Blitz November 15 Early 2022"]
[White "Shohat, Yotam"]
[Black "Ovchinnikov, Vsevolod"]
[WhiteFideId "2813955"]
[BlackFideId "24176842"]
[WhiteElo "2216"]
[BlackElo "2376"]
[Result "0-1"]
[Round "06"]
[TimeControl "180+1"]
[Date "2022.11.16"]
[WhiteClock "0:00:04"]
[BlackClock "0:00:12"]

1. c4 {[%clk 0:03:00]}  e5 {[%clk 0:02:59]} 2. Nc3 {[%clk 0:03:00]}  g6 {[%clk 0:02:58]} 3. d4 {[%clk 0:02:58]}  Nc6 {[%clk 0:02:54]} 4. d5 {[%clk 0:02:56]}  Nce7 {[%clk 0:02:54]} 5. e4 {[%clk 0:02:56]}  d6 {[%clk 0:02:54]} 6. h4 {[%clk 0:02:55]}  h5 {[%clk 0:02:54]} 7. Bg5 {[%clk 0:02:53]}  Bh6 {[%clk 0:02:53]} 8. Qd2 {[%clk 0:02:50]}  f6 {[%clk 0:02:52]} 9. Bxh6 {[%clk 0:02:46]}  Nxh6 {[%clk 0:02:53]} 10. O-O-O {[%clk 0:02:44]}  Kf8 {[%clk 0:02:41]} 11. Kb1 {[%clk 0:02:44]}  Kg7 {[%clk 0:02:41]} 12. f3 {[%clk 0:02:42]}  Bd7 {[%clk 0:02:36]} 13. Bd3 {[%clk 0:02:41]}  Qg8 {[%clk 0:02:32]} 14. Nge2 {[%clk 0:02:39]}  Qh7 {[%clk 0:02:30]} 15. Qe3 {[%clk 0:02:27]}  b6 {[%clk 0:02:28]} 16. Rc1 {[%clk 0:02:15]}  a6 {[%clk 0:02:26]} 17. Ka1 {[%clk 0:02:13]}  Nf7 {[%clk 0:02:24]} 18. g3 {[%clk 0:01:51]}  Qh6 {[%clk 0:02:23]} 19. Qxh6+ {[%clk 0:01:48]}  Nxh6 {[%clk 0:02:21]} 20. a3 {[%clk 0:01:46]}  Rhf8 {[%clk 0:02:19]} 21. b4 {[%clk 0:01:44]}  f5 {[%clk 0:02:16]} 22. c5 {[%clk 0:01:39]}  fxe4 {[%clk 0:02:13]} 23. Bxe4 {[%clk 0:01:39]}  Rf6 {[%clk 0:01:50]} 24. cxb6 {[%clk 0:01:33]}  cxb6 {[%clk 0:01:50]} 25. Nb1 {[%clk 0:01:23]}  Ra7 {[%clk 0:01:38]} 26. Rc3 {[%clk 0:01:12]}  Rf8 {[%clk 0:01:29]} 27. Rhc1 {[%clk 0:01:11]}  Rc8 {[%clk 0:01:29]} 28. Rxc8 {[%clk 0:01:09]}  Bxc8 {[%clk 0:01:30]} 29. Nbc3 {[%clk 0:01:05]}  Bd7 {[%clk 0:01:27]} 30. a4 {[%clk 0:00:59]}  Rc7 {[%clk 0:01:26]} 31. Kb2 {[%clk 0:00:52]}  Nhg8 {[%clk 0:01:07]} 32. Bd3 {[%clk 0:00:28]}  a5 {[%clk 0:00:57]} 33. bxa5 {[%clk 0:00:26]}  bxa5 {[%clk 0:00:57]} 34. Bb5 {[%clk 0:00:17]}  Nf6 {[%clk 0:00:37]} 35. Bxd7 {[%clk 0:00:17]}  Rxd7 {[%clk 0:00:38]} 36. Nb5 {[%clk 0:00:10]}  Nfxd5 {[%clk 0:00:34]} 37. Rd1 {[%clk 0:00:11]}  Kf6 {[%clk 0:00:25]} 38. Kb3 {[%clk 0:00:07]}  Ke6 {[%clk 0:00:23]} 39. Rc1 {[%clk 0:00:04]}  Nb4 {[%clk 0:00:20]} 40. Nec3 {[%clk 0:00:03]}  d5 {[%clk 0:00:19]} 41. Na2 {[%clk 0:00:04]}  Nbc6 {[%clk 0:00:17]} 42. Rc5 {[%clk 0:00:02]}  Rb7 {[%clk 0:00:16]} 43. Nc1 {[%clk 0:00:02]}  Nd4+ {[%clk 0:00:14]} 44. Kc3 {[%clk 0:00:03]}  Nxb5+ {[%clk 0:00:14]} 45. axb5 {[%clk 0:00:03]}  Kd6 {[%clk 0:00:14]} 46. Nd3 {[%clk 0:00:02]}  e4 {[%clk 0:00:10]} 47. fxe4 {[%clk 0:00:03]}  dxe4 {[%clk 0:00:11]} 48. Rc4 {[%clk 0:00:02]}  exd3 {[%clk 0:00:11]} 49. Kxd3 {[%clk 0:00:03]}  Rxb5 {[%clk 0:00:11]} 50. Rd4+ {[%clk 0:00:04]}  Rd5 {[%clk 0:00:12]} 0-1


[Site "https://www.chess.com"]

[Event "Titled Tuesday Blitz November 15 Early 2022"]
[White "Skliarov, Viktor"]
[Black "Fiol, Fabrice"]
[WhiteFideId "14106736"]
[BlackFideId "611670"]
[WhiteElo "2284"]
[BlackElo "2414"]
[Result "1-0"]
[Round "06"]
[TimeControl "180+1"]
[Date "2022.11.16"]
[WhiteClock "0:00:27"]
[BlackClock "0:00:57"]

1. e4 {[%clk 0:03:00]}  c5 {[%clk 0:02:53]} 2. Nf3 {[%clk 0:03:00]}  e6 {[%clk 0:02:53]} 3. c3 {[%clk 0:03:00]}  Qc7 {[%clk 0:02:52]} 4. d4 {[%clk 0:02:59]}  d6 {[%clk 0:02:52]} 5. Bf4 {[%clk 0:02:46]}  Nd7 {[%clk 0:02:41]} 6. Nbd2 {[%clk 0:02:23]}  e5 {[%clk 0:02:37]} 7. dxe5 {[%clk 0:02:19]}  Nxe5 {[%clk 0:02:32]} 8. Nxe5 {[%clk 0:02:09]}  dxe5 {[%clk 0:02:32]} 9. Bb5+ {[%clk 0:02:10]}  Bd7 {[%clk 0:02:26]} 10. Bxe5 {[%clk 0:01:47]}  Qxe5 {[%clk 0:02:06]} 11. Bxd7+ {[%clk 0:01:46]}  Ke7 {[%clk 0:02:07]} 12. Bh3 {[%clk 0:01:16]}  Rd8 {[%clk 0:02:01]} 13. Qb3 {[%clk 0:01:11]}  Nf6 {[%clk 0:01:44]} 14. Qxb7+ {[%clk 0:01:09]}  Nd7 {[%clk 0:01:43]} 15. O-O-O {[%clk 0:00:58]}  g6 {[%clk 0:01:43]} 16. Nc4 {[%clk 0:00:56]}  Bh6+ {[%clk 0:01:38]} 17. Kb1 {[%clk 0:00:55]}  Qb8 {[%clk 0:01:24]} 18. Rxd7+ {[%clk 0:00:53]}  Rxd7 {[%clk 0:01:25]} 19. Qxd7+ {[%clk 0:00:53]}  Kf8 {[%clk 0:01:26]} 20. Qd6+ {[%clk 0:00:53]}  Kg7 {[%clk 0:01:26]} 21. Qxb8 {[%clk 0:00:53]}  Rxb8 {[%clk 0:01:25]} 22. Kc2 {[%clk 0:00:53]}  Bf4 {[%clk 0:01:24]} 23. g3 {[%clk 0:00:53]}  Bc7 {[%clk 0:01:24]} 24. f4 {[%clk 0:00:54]}  h5 {[%clk 0:01:22]} 25. Rd1 {[%clk 0:00:52]}  h4 {[%clk 0:01:17]} 26. Rd7 {[%clk 0:00:52]}  Bd8 {[%clk 0:01:18]} 27. Be6 {[%clk 0:00:51]}  hxg3 {[%clk 0:01:17]} 28. hxg3 {[%clk 0:00:51]}  Kh6 {[%clk 0:01:14]} 29. Bxf7 {[%clk 0:00:50]}  g5 {[%clk 0:01:14]} 30. Ne3 {[%clk 0:00:41]}  gxf4 {[%clk 0:01:14]} 31. gxf4 {[%clk 0:00:41]}  Bf6 {[%clk 0:01:11]} 32. Nf5+ {[%clk 0:00:40]}  Kh7 {[%clk 0:01:05]} 33. e5 {[%clk 0:00:39]}  Bg7 {[%clk 0:01:01]} 34. Bh5 {[%clk 0:00:38]}  c4 {[%clk 0:00:59]} 35. Rxg7+ {[%clk 0:00:37]}  Kh8 {[%clk 0:01:00]} 36. Re7 {[%clk 0:00:33]}  a5 {[%clk 0:00:58]} 37. Re8+ {[%clk 0:00:32]}  Kh7 {[%clk 0:00:57]} 38. Rxb8 {[%clk 0:00:29]}  a4 {[%clk 0:00:58]} 39. Rb7+ {[%clk 0:00:29]}  Kh8 {[%clk 0:00:57]} 40. Bg6 {[%clk 0:00:28]}  a3 {[%clk 0:00:57]} 41. Rb8# {[%clk 0:00:27]} 1-0


[Site "https://www.chess.com"]

[Event "Titled Tuesday Blitz November 15 Early 2022"]
[White "Szente Varga, Fruzsina"]
[Black "Hajiyev, Kanan"]
[WhiteFideId "712264"]
[BlackFideId "13404148"]
[WhiteElo "1994"]
[BlackElo "2118"]
[Result "0-1"]
[Round "06"]
[TimeControl "180+1"]
[Date "2022.11.16"]
[WhiteClock "0:00:09"]
[BlackClock "0:00:16"]

1. e4 {[%clk 0:03:00]}  c6 {[%clk 0:02:53]} 2. d4 {[%clk 0:03:00]}  d5 {[%clk 0:02:54]} 3. Nc3 {[%clk 0:03:00]}  a6 {[%clk 0:02:50]} 4. exd5 {[%clk 0:02:54]}  cxd5 {[%clk 0:02:51]} 5. Bd3 {[%clk 0:02:54]}  Nc6 {[%clk 0:02:52]} 6. Nge2 {[%clk 0:02:54]}  Bg4 {[%clk 0:02:52]} 7. Be3 {[%clk 0:02:51]}  e6 {[%clk 0:02:50]} 8. h3 {[%clk 0:02:48]}  Bh5 {[%clk 0:02:50]} 9. O-O {[%clk 0:02:48]}  Nf6 {[%clk 0:02:50]} 10. Qd2 {[%clk 0:02:45]}  Bd6 {[%clk 0:02:48]} 11. Ng3 {[%clk 0:02:45]}  Bg6 {[%clk 0:02:41]} 12. Nce2 {[%clk 0:02:21]}  Qc7 {[%clk 0:02:41]} 13. c3 {[%clk 0:02:20]}  O-O {[%clk 0:02:29]} 14. f4 {[%clk 0:02:10]}  b5 {[%clk 0:02:10]} 15. Rf3 {[%clk 0:02:07]}  Ne4 {[%clk 0:01:59]} 16. Bxe4 {[%clk 0:02:02]}  Bxe4 {[%clk 0:01:51]} 17. Nxe4 {[%clk 0:02:02]}  dxe4 {[%clk 0:01:52]} 18. Rg3 {[%clk 0:02:02]}  Ne7 {[%clk 0:01:52]} 19. Rg4 {[%clk 0:01:30]}  Rab8 {[%clk 0:01:45]} 20. Ng3 {[%clk 0:01:17]}  f5 {[%clk 0:01:43]} 21. Rg5 {[%clk 0:01:14]}  g6 {[%clk 0:01:34]} 22. Ne2 {[%clk 0:01:08]}  b4 {[%clk 0:01:24]} 23. h4 {[%clk 0:01:01]}  bxc3 {[%clk 0:01:19]} 24. Nxc3 {[%clk 0:01:01]}  Nd5 {[%clk 0:01:05]} 25. Nxd5 {[%clk 0:01:01]}  exd5 {[%clk 0:01:06]} 26. Rc1 {[%clk 0:01:00]}  Qb6 {[%clk 0:01:03]} 27. b3 {[%clk 0:00:59]}  Be7 {[%clk 0:01:00]} 28. Rg3 {[%clk 0:00:58]}  Bxh4 {[%clk 0:00:59]} 29. Rh3 {[%clk 0:00:58]}  Bf6 {[%clk 0:00:59]} 30. Kf2 {[%clk 0:00:45]}  Qb4 {[%clk 0:00:48]} 31. Qxb4 {[%clk 0:00:17]}  Rxb4 {[%clk 0:00:47]} 32. Rc7 {[%clk 0:00:18]}  h5 {[%clk 0:00:38]} 33. Rg3 {[%clk 0:00:16]}  Bh4 {[%clk 0:00:39]} 34. Rc6 {[%clk 0:00:14]}  Bxg3+ {[%clk 0:00:38]} 35. Kxg3 {[%clk 0:00:15]}  a5 {[%clk 0:00:29]} 36. Rxg6+ {[%clk 0:00:15]}  Kf7 {[%clk 0:00:30]} 37. Rh6 {[%clk 0:00:15]}  a4 {[%clk 0:00:25]} 38. bxa4 {[%clk 0:00:13]}  Rxa4 {[%clk 0:00:24]} 39. Rxh5 {[%clk 0:00:14]}  Kg6 {[%clk 0:00:22]} 40. Rg5+ {[%clk 0:00:14]}  Kf6 {[%clk 0:00:22]} 41. Bd2 {[%clk 0:00:11]}  Ra3+ {[%clk 0:00:20]} 42. Kh2 {[%clk 0:00:09]}  Rh8+ {[%clk 0:00:18]} 43. Kg1 {[%clk 0:00:10]}  Rxa2 {[%clk 0:00:18]} 44. Bb4 {[%clk 0:00:09]}  e3 {[%clk 0:00:17]} 45. Bd6 {[%clk 0:00:09]}  Ra1# {[%clk 0:00:16]} 0-1


[Site "https://www.chess.com"]

[Event "Titled Tuesday Blitz November 15 Early 2022"]
[White "Szpar, Milosz"]
[Black "Avila Rodriguez, Joshua Ad"]
[WhiteFideId "1184989"]
[BlackFideId "5126444"]
[WhiteElo "2422"]
[BlackElo "2125"]
[Result "1-0"]
[Round "06"]
[TimeControl "180+1"]
[Date "2022.11.16"]
[WhiteClock "0:00:08"]
[BlackClock "0:00:02"]

1. e4 {[%clk 0:03:00]}  c5 {[%clk 0:02:59]} 2. Nf3 {[%clk 0:02:58]}  d6 {[%clk 0:02:59]} 3. d4 {[%clk 0:02:58]}  cxd4 {[%clk 0:03:00]} 4. Nxd4 {[%clk 0:02:58]}  Nf6 {[%clk 0:03:00]} 5. Nc3 {[%clk 0:02:58]}  a6 {[%clk 0:03:01]} 6. Rg1 {[%clk 0:02:57]}  e5 {[%clk 0:02:50]} 7. Nb3 {[%clk 0:02:56]}  h5 {[%clk 0:02:48]} 8. Bg5 {[%clk 0:02:55]}  Be6 {[%clk 0:02:48]} 9. Bxf6 {[%clk 0:02:52]}  Qxf6 {[%clk 0:02:48]} 10. Nd5 {[%clk 0:02:53]}  Qd8 {[%clk 0:02:48]} 11. a4 {[%clk 0:02:49]}  Nd7 {[%clk 0:02:47]} 12. a5 {[%clk 0:02:47]}  Rc8 {[%clk 0:02:28]} 13. Be2 {[%clk 0:02:34]}  Nf6 {[%clk 0:02:26]} 14. Nb6 {[%clk 0:02:28]}  Rc6 {[%clk 0:02:26]} 15. Bf3 {[%clk 0:02:26]}  g6 {[%clk 0:02:01]} 16. Qd3 {[%clk 0:02:26]}  Bh6 {[%clk 0:01:59]} 17. Nc1 {[%clk 0:01:53]}  O-O {[%clk 0:01:56]} 18. Ne2 {[%clk 0:01:52]}  d5 {[%clk 0:01:48]} 19. exd5 {[%clk 0:01:40]}  Bf5 {[%clk 0:01:46]} 20. Qb3 {[%clk 0:01:38]}  Rxc2 {[%clk 0:01:45]} 21. Ng3 {[%clk 0:01:33]}  Qc7 {[%clk 0:01:27]} 22. Nxf5 {[%clk 0:01:32]}  gxf5 {[%clk 0:01:15]} 23. Bd1 {[%clk 0:01:28]}  Rd2 {[%clk 0:00:56]} 24. Qh3 {[%clk 0:01:12]}  Ng4 {[%clk 0:00:44]} 25. Bxg4 {[%clk 0:01:05]}  fxg4 {[%clk 0:00:23]} 26. Qxh5 {[%clk 0:01:05]}  Qc5 {[%clk 0:00:17]} 27. Rf1 {[%clk 0:01:02]}  Rxb2 {[%clk 0:00:09]} 28. Qxg4+ {[%clk 0:00:50]}  Kh8 {[%clk 0:00:09]} 29. Qc4 {[%clk 0:00:50]}  Qe7 {[%clk 0:00:04]} 30. Kd1 {[%clk 0:00:45]}  Qg5 {[%clk 0:00:03]} 31. Qc3 {[%clk 0:00:27]}  Rd2+ {[%clk 0:00:03]} 32. Ke1 {[%clk 0:00:27]}  Qf5 {[%clk 0:00:03]} 33. f3 {[%clk 0:00:10]}  Rd8 {[%clk 0:00:04]} 34. Rf2 {[%clk 0:00:08]}  Rd4 {[%clk 0:00:03]} 35. Kf1 {[%clk 0:00:08]}  Bg5 {[%clk 0:00:01]} 36. Re1 {[%clk 0:00:07]}  Kg7 {[%clk 0:00:02]} 37. Kg1 {[%clk 0:00:07]}  f6 {[%clk 0:00:02]} 38. Rfe2 {[%clk 0:00:08]} 1-0


[Site "https://www.chess.com"]